[Event "1st 4NCL International Open"]
[Site "Telford"]
[Date "2018.11.04"]
[Round "8"]
[White "Hill, Alistair"]
[Black "Stepanyan, Henrik"]
[Result "1-0"]
[ECO "E17"]
[WhiteElo "2204"]
[BlackElo "2158"]
[Annotator "NA"]
[PlyCount "141"]
[EventDate "2018.10.31"]
[EventType "swiss"]
[EventCountry "GBR"]
[SourceTitle "playchess.com"]
[Source "ChessBase"]
[SourceQuality "1"]
[TimeControl "5400+30"]

1. Nf3 {[%emt 0:06:18]} Nf6 {[%emt 0:00:08]} 2. c4 {[%emt 0:01:00]} e6 {[%emt 0:00:10]} 3. g3 {[%emt 0:00:04]} d5 {[%emt 0:00:17]} 4. Bg2 {[%emt 0:00:04]} Be7 {[%emt 0:00:06]} 5. O-O {[%emt 0:00:05]} O-O {[%emt 0:00:09]} 6. b3 {[%emt 0:02:18]} a5 {[%emt 0:01:40]} 7. Nc3 {[%emt 0:01:23]} b6 {[%emt 0:00:20]} 8. cxd5 {[%emt 0:02:17]} exd5 {[%emt 0:04:00]} 9. d4 {[%emt 0:00:27]} Bb7 {[%emt 0:09:12]} 10. Bb2 {[%emt 0:04:42]} Nbd7 {[%emt 0:03:49]} 11. Rc1 {[%emt 0:00:15]} Re8 {[%emt 0:00:12]} 12. Qc2 {[%emt 0:06:33]} Bb4 {[%emt 0:13:53]} 13. e3 {[%emt 0:02:49]} Rc8 {[%emt 0:04:34]} 14. Rfd1 {[%emt 0:07:14]} Qe7 {[%emt 0:06:12]} 15. Qb1 {[%emt 0:06:39]} h6 {[%emt 0:19:11]} 16. Bh3 {[%emt 0:18:04]} Bxc3 {[%emt 0:05:47]} 17. Rxc3 {[%emt 0:01:32]} Ne4 {[%emt 0:00:23]} 18. Rc2 {[%emt 0:00:03]} c6 {[%emt 0:00:55]} 19. Qc1 {[%emt 0:04:44]} Rc7 {[%emt 0:02:28]} 20. Bg2 {[%emt 0:04:02]} Qe6 {[%emt 0:03:17]} 21. a4 {[%emt 0:01:30]} Ba8 {[%emt 0:03:00]} 22. Ba3 {[%emt 0:00:12]} Rec8 {[%emt 0:02:09]} 23. Nd2 {[%emt 0:07:04]} Ndf6 {[%emt 0:01:57]} 24. Nxe4 {[%emt 0:00:26]} dxe4 {[%emt 0:02:38]} 25. Rc4 {[%emt 0:01:38]} Qd5 {[%emt 0:02:22]} 26. Qc2 {[%emt 0:04:00]} Re8 {[%emt 0:02:42]} 27. Rb1 {[%emt 0:02:36]} Bb7 {[%emt 0:00:28]} 28. b4 {[%emt 0:00:10]} axb4 {[%emt 0:00:05]} 29. Rcxb4 {[%emt 0:00:37]} Nd7 {[%emt 0:01:12]} 30. Rc1 {[%emt 0:05:30]} Ba6 {[%emt 0:00:36]} 31. h4 {[%emt 0:01:59]} Rcc8 {[%emt 0:03:49]} 32. Bh3 {[%emt 0:00:18]} Bd3 {[%emt 0:00:33]} 33. Qb3 {[%emt 0:00:10]} Rcd8 {[%emt 0:02:36]} 34. Qxd5 {[%emt 0:02:27]} cxd5 {[%emt 0:00:02]} 35. Rc7 {[%emt 0:00:06]} Nf6 {[%emt 0:03:24]} 36. Rxb6 {[%emt 0:00:02]} Ra8 {[%emt 0:00:03]} 37. Rbb7 {[%emt 0:00:16]} Rxa4 {[%emt 0:00:30]} 38. Bd6 {[%emt 0:05:47]} Ba6 {[%emt 0:00:52]} 39. Ra7 {[%emt 0:00:29]} Bb5 {[%emt 0:00:50]} 40. Rxf7 {[%emt 0:00:52]} Rxa7 {[%emt 0:00:02]} 41. Rxa7 {[%emt 0:00:06]} Be2 {[%emt 0:03:00]} 42. Rb7 {[%emt 0:00:57]} Ra8 {[%emt 0:00:21]} 43. Rb8+ {[%emt 0:00:05]} Rxb8 {[%emt 0:00:04]} 44. Be6+ {[%emt 0:00:25]} Kh7 {[%emt 0:00:21]} 45. Bxb8 {[%emt 0:00:03]} Bc4 {[%emt 0:00:17]} 46. Be5 {[%emt 0:00:11]} Kg6 {[%emt 0:00:49]} 47. Bxf6 {[%emt 0:00:24]} Kxf6 {[%emt 0:00:34]} 48. Bh3 {[%emt 0:00:03]} Ke7 {[%emt 0:01:14]} 49. f3 {[%emt 0:01:35]} exf3 {[%emt 0:00:14]} 50. Kf2 {[%emt 0:00:02]} Kf6 {[%emt 0:00:38]} 51. Kxf3 {[%emt 0:00:07]} Bd3 {[%emt 0:00:02]} 52. Bd7 {[%emt 0:02:34]} g5 {[%emt 0:01:03]} 53. hxg5+ {[%emt 0:00:29]} Kxg5 {[%emt 0:00:15]} 54. Kf2 {[%emt 0:01:21]} h5 {[%emt 0:00:26]} 55. Bc6 {[%emt 0:00:23]} Be4 {[%emt 0:00:37]} 56. Bb5 {[%emt 0:00:26]} h4 {[%emt 0:00:40]} 57. gxh4+ {[%emt 0:00:07]} Kxh4 {[%emt 0:00:02]} 58. Be2 {[%emt 0:00:09]} Bc2 {[%emt 0:00:30]} 59. Bf3 {[%emt 0:02:13]} Bb3 {[%emt 0:00:02]} 60. Ke2 {[%emt 0:00:33]} Kg5 {[%emt 0:00:39]} 61. Kd2 {[%emt 0:00:21]} Kf5 {[%emt 0:01:31]} 62. Kc3 {[%emt 0:00:02]} Ba2 {[%emt 0:00:04]} 63. Kb4 {[%emt 0:00:20]} Ke6 {[%emt 0:00:07]} 64. Kc5 {[%emt 0:00:14]} Bb3 {[%emt 0:00:09]} 65. Bg4+ {[%emt 0:00:47]} Ke7 {[%emt 0:00:03]} 66. Bf5 {[%emt 0:00:32]} Kf6 {[%emt 0:00:13]} 67. Bh7 {[%emt 0:00:18]} Kg7 {[%emt 0:01:11]} 68. Bd3 {[%emt 0:00:18]} Kf6 {[%emt 0:00:09]} 69. Kd6 {[%emt 0:00:28]} Bc4 {[%emt 0:00:32]} 70. Bc2 {[%emt 0:00:10]} Ba2 {[%emt 0:00:07]} 71. Bd1 {[%emt 0:00:13]} 1-0

[Event "1st 4NCL International Open"]
[Site "Telford"]
[Date "2018.11.04"]
[Round "8"]
[White "Mason, Donald J"]
[Black "Gourlay, Iain"]
[Result "0-1"]
[ECO "B49"]
[WhiteElo "2165"]
[BlackElo "2358"]
[Annotator "NA"]
[PlyCount "63"]
[EventDate "2018.10.31"]
[EventType "swiss"]
[EventCountry "GBR"]
[SourceTitle "playchess.com"]
[Source "ChessBase"]
[SourceQuality "1"]
[TimeControl "5400+30"]

1. e4 {[%emt 0:00:00]} c5 {[%emt 0:04:13]} 2. Nf3 {[%emt 0:00:00]} e6 {[%emt 0:00:14]} 3. d4 {[%emt 0:00:00]} cxd4 {[%emt 0:00:05]} 4. Nxd4 {[%emt 0:00:03]} Nc6 {[%emt 0:00:04]} 5. Nc3 {[%emt 0:00:28]} Qc7 {[%emt 0:00:14]} 6. Be3 {[%emt 0:00:32]} a6 {[%emt 0:00:51]} 7. Be2 {[%emt 0:00:21]} Nf6 {[%emt 0:01:18]} 8. O-O {[%emt 0:00:27]} Bb4 {[%emt 0:02:08]} 9. Nxc6 {[%emt 0:01:55]} bxc6 {[%emt 0:00:50]} 10. f4 {[%emt 0:01:24]} O-O {[%emt 0:13:33]} 11. e5 {[%emt 0:01:32]} Nd5 {[%emt 0:01:46]} 12. Nxd5 {[%emt 0:01:06]} cxd5 {[%emt 0:00:17]} 13. c3 {[%emt 0:10:29]} Be7 {[%emt 0:10:54]} 14. Bd3 {[%emt 0:04:31]} d6 {[%emt 0:19:00]} 15. Qh5 {[%emt 0:13:15]} g6 {[%emt 0:00:14]} 16. Qh6 {[%emt 0:00:07]} Re8 {[%emt 0:03:18]} 17. Bd4 {[%emt 0:11:45]} Bf8 {[%emt 0:00:40]} 18. exd6 {[%emt 0:14:59]} Qxd6 {[%emt 0:00:29]} 19. Qh4 {[%emt 0:00:11]} Bg7 {[%emt 0:04:35]} 20. Rae1 {[%emt 0:03:45]} Bxd4+ {[%emt 0:03:39]} 21. cxd4 {[%emt 0:00:10]} Bd7 {[%emt 0:01:06]} 22. Re3 {[%emt 0:05:48]} Qb4 {[%emt 0:05:37]} 23. Qf6 {[%emt 0:02:55]} Bb5 {[%emt 0:08:53]} 24. Bxb5 {[%emt 0:10:15]} axb5 {[%emt 0:01:47]} 25. Rb3 {[%emt 0:00:15]} Qd2 {[%emt 0:03:41]} 26. Rf2 {[%emt 0:09:05]} Qe1+ {[%emt 0:01:18]} 27. Rf1 {[%emt 0:00:02]} Qe4 {[%emt 0:01:06]} 28. Qe5 {[%emt 0:01:37]} Qc2 {[%emt 0:03:15]} 29. Rxb5 {[%emt 0:01:37]} Rxa2 {[%emt 0:01:03]} 30. Rb8 {[%emt 0:02:03]} Ra8 {[%emt 0:01:34]} 31. Rxe8+ {[%emt 0:02:37]} Rxe8 {[%emt 0:00:06]} 32. f5 {[%emt 0:00:14]} 0-1

[Event "1st 4NCL International Open"]
[Site "Telford"]
[Date "2018.11.04"]
[Round "8"]
[White "Ferrington, Nigel M"]
[Black "Guha, Chirag"]
[Result "1-0"]
[ECO "C01"]
[WhiteElo "2130"]
[BlackElo "1887"]
[Annotator "NA"]
[PlyCount "135"]
[EventDate "2018.10.31"]
[EventType "swiss"]
[EventCountry "GBR"]
[SourceTitle "playchess.com"]
[Source "ChessBase"]
[SourceQuality "1"]
[TimeControl "5400+30"]

1. c4 {[%emt 0:00:00]} e6 {[%emt 0:00:08]} 2. e4 {[%emt 0:03:53]} d5 {[%emt 0:02:24]} 3. exd5 {[%emt 0:00:12]} exd5 {[%emt 0:00:10]} 4. d4 {[%emt 0:00:07]} c6 {[%emt 0:02:10]} 5. Nc3 {[%emt 0:01:24]} Nf6 {[%emt 0:00:11]} 6. Bd3 {[%emt 0:00:22]} Be7 {[%emt 0:00:58]} 7. Nge2 {[%emt 0:00:19]} O-O {[%emt 0:01:01]} 8. O-O {[%emt 0:00:05]} Bg4 {[%emt 0:11:35]} 9. f3 {[%emt 0:00:58]} Be6 {[%emt 0:06:06]} 10. Nf4 {[%emt 0:02:25]} Bd6 {[%emt 0:05:09]} 11. Nxe6 {[%emt 0:03:00]} fxe6 {[%emt 0:00:07]} 12. Bg5 {[%emt 0:07:28]} Qc7 {[%emt 0:10:16]} 13. f4 {[%emt 0:01:36]} h6 {[%emt 0:07:08]} 14. Bxf6 {[%emt 0:00:53]} Rxf6 {[%emt 0:00:45]} 15. g3 {[%emt 0:00:49]} Nd7 {[%emt 0:02:15]} 16. c5 {[%emt 0:02:44]} Be7 {[%emt 0:02:44]} 17. b4 {[%emt 0:02:08]} b6 {[%emt 0:00:54]} 18. Bc2 {[%emt 0:06:21]} Nf8 {[%emt 0:10:59]} 19. Qd3 {[%emt 0:01:26]} Rb8 {[%emt 0:03:18]} 20. Nb1 {[%emt 0:06:01]} Kf7 {[%emt 0:08:32]} 21. Nd2 {[%emt 0:00:26]} Ke8 {[%emt 0:03:57]} 22. Nf3 {[%emt 0:00:17]} Kd8 {[%emt 0:02:23]} 23. Ne5 {[%emt 0:00:39]} Kc8 {[%emt 0:01:00]} 24. cxb6 {[%emt 0:08:41]} Rxb6 {[%emt 0:02:40]} 25. Ba4 {[%emt 0:03:44]} Rxb4 {[%emt 0:06:14]} 26. Qa6+ {[%emt 0:11:09]} Qb7 {[%emt 0:01:34]} 27. Qxb7+ {[%emt 0:01:01]} Kxb7 {[%emt 0:00:56]} 28. Rab1 {[%emt 0:00:19]} Kc7 {[%emt 0:01:59]} 29. Rxb4 {[%emt 0:00:48]} Bxb4 {[%emt 0:00:03]} 30. Nxc6 {[%emt 0:01:55]} Bd6 {[%emt 0:01:17]} 31. Nxa7 {[%emt 0:00:44]} Ng6 {[%emt 0:00:36]} 32. Rb1 {[%emt 0:03:54]} Bxf4 {[%emt 0:00:27]} 33. gxf4 {[%emt 0:01:29]} Rxf4 {[%emt 0:00:18]} 34. Nb5+ {[%emt 0:16:34]} Kd8 {[%emt 0:00:23]} 35. Bd1 {[%emt 0:01:40]} Ne7 {[%emt 0:00:58]} 36. Be2 {[%emt 0:02:15]} Nc6 {[%emt 0:02:33]} 37. Rd1 {[%emt 0:00:12]} Kc8 {[%emt 0:02:57]} 38. Kg2 {[%emt 0:01:14]} Kd7 {[%emt 0:00:46]} 39. a4 {[%emt 0:01:22]} Kc8 {[%emt 0:00:21]} 40. Rf1 {[%emt 0:01:46]} Rh4 {[%emt 0:00:54]} 41. Rf8+ {[%emt 0:00:25]} Kb7 {[%emt 0:00:19]} 42. Rf7+ {[%emt 0:00:18]} Kb6 {[%emt 0:00:13]} 43. Rxg7 {[%emt 0:00:24]} Nxd4 {[%emt 0:00:24]} 44. Nxd4 {[%emt 0:00:06]} Rxd4 {[%emt 0:00:11]} 45. Bb5 {[%emt 0:00:24]} Re4 {[%emt 0:01:01]} 46. Kf3 {[%emt 0:01:00]} Kc5 {[%emt 0:00:48]} 47. Rh7 {[%emt 0:00:59]} Rh4 {[%emt 0:00:31]} 48. Kg3 {[%emt 0:00:06]} Rh5 {[%emt 0:00:40]} 49. h4 {[%emt 0:00:10]} d4 {[%emt 0:00:23]} 50. Kg4 {[%emt 0:01:04]} Rd5 {[%emt 0:00:12]} 51. Rxh6 {[%emt 0:04:55]} e5 {[%emt 0:00:32]} 52. Kf5 {[%emt 0:01:26]} d3 {[%emt 0:00:52]} 53. Bxd3 {[%emt 0:00:50]} Rxd3 {[%emt 0:00:12]} 54. Kxe5 {[%emt 0:00:06]} Ra3 {[%emt 0:00:08]} 55. h5 {[%emt 0:00:23]} Rxa4 {[%emt 0:00:02]} 56. Rf6 {[%emt 0:00:46]} Rh4 {[%emt 0:00:19]} 57. h6 {[%emt 0:00:15]} Rh5+ {[%emt 0:00:36]} 58. Ke6 {[%emt 0:00:08]} Kc6 {[%emt 0:00:15]} 59. Kf7+ {[%emt 0:00:25]} Kd7 {[%emt 0:00:10]} 60. Kg6 {[%emt 0:01:31]} Ke7 {[%emt 0:01:11]} 61. Rf7+ {[%emt 0:00:32]} Ke8 {[%emt 0:00:15]} 62. Ra7 {[%emt 0:00:38]} Rh1 {[%emt 0:00:19]} 63. h7 {[%emt 0:00:12]} Rg1+ {[%emt 0:00:21]} 64. Kf5 {[%emt 0:00:06]} Rf1+ {[%emt 0:00:19]} 65. Kg4 {[%emt 0:00:03]} Rg1+ {[%emt 0:00:21]} 66. Kf3 {[%emt 0:00:04]} Rf1+ {[%emt 0:00:14]} 67. Kg2 {[%emt 0:00:11]} Rf8 {[%emt 0:00:16]} 68. Ra8+ {[%emt 0:00:06] Kd8 [%emt 00:01:04]} 1-0

[Event "1st 4NCL International Open"]
[Site "Telford"]
[Date "2018.11.04"]
[Round "8"]
[White "Munshi, Aditya"]
[Black "Clark, Robert G"]
[Result "0-1"]
[ECO "C06"]
[WhiteElo "2117"]
[BlackElo "2032"]
[Annotator "NA"]
[PlyCount "104"]
[EventDate "2018.10.31"]
[EventType "swiss"]
[EventCountry "GBR"]
[SourceTitle "playchess.com"]
[Source "ChessBase"]
[SourceQuality "1"]
[TimeControl "5400+30"]

1. e4 {[%emt 0:05:45]} e6 {[%emt 0:00:00]} 2. d4 {[%emt 0:00:48]} d5 {[%emt 0:00:00]} 3. Nd2 {[%emt 0:00:39]} Nf6 {[%emt 0:00:00]} 4. e5 {[%emt 0:00:21]} Nfd7 {[%emt 0:00:03]} 5. Bd3 {[%emt 0:00:13]} c5 {[%emt 0:00:07]} 6. c3 {[%emt 0:00:05]} Nc6 {[%emt 0:00:06]} 7. Ne2 {[%emt 0:00:04]} cxd4 {[%emt 0:00:18]} 8. cxd4 {[%emt 0:00:10]} f6 {[%emt 0:00:11]} 9. exf6 {[%emt 0:00:19]} Nxf6 {[%emt 0:00:06]} 10. Nf3 {[%emt 0:00:07]} Bd6 {[%emt 0:00:09]} 11. O-O {[%emt 0:00:08]} O-O {[%emt 0:00:04]} 12. Bf4 {[%emt 0:00:08]} Bxf4 {[%emt 0:00:18]} 13. Nxf4 {[%emt 0:00:28]} Ne4 {[%emt 0:00:20]} 14. Qc1 {[%emt 0:00:18]} Qf6 {[%emt 0:01:11]} 15. Nh5 {[%emt 0:05:32]} Qg6 {[%emt 0:00:45]} 16. Ng3 {[%emt 0:06:09]} Nxg3 {[%emt 0:00:39]} 17. Bxg6 {[%emt 0:19:37]} Ne2+ {[%emt 0:00:25]} 18. Kh1 {[%emt 0:00:00]} Nxc1 {[%emt 0:00:10]} 19. Bxh7+ {[%emt 0:00:51]} Kxh7 {[%emt 0:00:11]} 20. Raxc1 {[%emt 0:00:04]} Bd7 {[%emt 0:05:39]} 21. Rfe1 {[%emt 0:00:05]} Rac8 {[%emt 0:12:31]} 22. Kg1 {[%emt 0:00:32]} Kg8 {[%emt 0:03:09]} 23. Rc3 {[%emt 0:00:39]} Rf4 {[%emt 0:08:39]} 24. g3 {[%emt 0:00:15]} Re4 {[%emt 0:06:02]} 25. Rxe4 {[%emt 0:00:13]} dxe4 {[%emt 0:00:04]} 26. Ng5 {[%emt 0:00:16]} Nxd4 {[%emt 0:02:39]} 27. Rxc8+ {[%emt 0:00:02]} Bxc8 {[%emt 0:00:07]} 28. Nxe4 {[%emt 0:00:01]} Bd7 {[%emt 0:01:40]} 29. Nc5 {[%emt 0:01:22]} Bc6 {[%emt 0:00:53]} 30. h4 {[%emt 0:00:12]} Bd5 {[%emt 0:01:32]} 31. a3 {[%emt 0:00:02]} Kf7 {[%emt 0:01:29]} 32. Kf1 {[%emt 0:00:06]} Ke7 {[%emt 0:01:18]} 33. Ke1 {[%emt 0:00:05]} Nf3+ {[%emt 0:04:37]} 34. Ke2 {[%emt 0:00:13]} b6 {[%emt 0:01:56]} 35. Nd3 {[%emt 0:00:34]} Bc4 {[%emt 0:01:01]} 36. Kxf3 {[%emt 0:00:01]} Bxd3 {[%emt 0:00:07]} 37. Ke3 {[%emt 0:01:28]} Bb1 {[%emt 0:00:24]} 38. f4 {[%emt 0:00:09]} Bc2 {[%emt 0:02:45]} 39. Kd4 {[%emt 0:01:42]} Kd6 {[%emt 0:00:44]} 40. g4 {[%emt 0:08:49]} Bd1 {[%emt 0:00:29]} 41. g5 {[%emt 0:00:06]} Bg4 {[%emt 0:02:49]} 42. a4 {[%emt 0:00:18]} Bd1 {[%emt 0:01:27]} 43. a5 {[%emt 0:02:44]} bxa5 {[%emt 0:00:28]} 44. Kc4 {[%emt 0:01:17]} a4 {[%emt 0:00:49]} 45. Kd4 {[%emt 0:00:19]} Bg4 {[%emt 0:00:44]} 46. Ke4 {[%emt 0:00:33]} g6 {[%emt 0:06:35]} 47. Kd4 {[%emt 0:00:05]} Bf5 {[%emt 0:00:10]} 48. Kc4 {[%emt 0:00:28]} e5 {[%emt 0:00:55]} 49. fxe5+ {[%emt 0:00:02]} Kxe5 {[%emt 0:00:05]} 50. Kb4 {[%emt 0:00:06]} Kf4 {[%emt 0:00:56]} 51. Kxa4 {[%emt 0:00:02]} Kg4 {[%emt 0:00:13]} 52. Ka5 {[%emt 0:00:04]} Bd3 {[%emt 0:01:20]} 0-1

[Event "1st 4NCL International Open"]
[Site "Telford"]
[Date "2018.11.04"]
[Round "8"]
[White "White, Stuart A"]
[Black "Britton, Richard L"]
[Result "1/2-1/2"]
[ECO "E62"]
[WhiteElo "2113"]
[BlackElo "2204"]
[Annotator "NA"]
[PlyCount "100"]
[EventDate "2018.10.31"]
[EventType "swiss"]
[EventCountry "GBR"]
[SourceTitle "playchess.com"]
[Source "ChessBase"]
[SourceQuality "1"]
[TimeControl "5400+30"]

1. d4 {[%emt 0:00:00]} Nf6 {[%emt 0:04:04]} 2. c4 {[%emt 0:00:00]} g6 {[%emt 0:00:21]} 3. Nf3 {[%emt 0:00:00]} Bg7 {[%emt 0:00:03]} 4. g3 {[%emt 0:00:00]} O-O {[%emt 0:00:31]} 5. Bg2 {[%emt 0:00:00]} d6 {[%emt 0:00:12]} 6. Nc3 {[%emt 0:00:00]} Nc6 {[%emt 0:00:59]} 7. O-O {[%emt 0:00:13]} e5 {[%emt 0:00:11]} 8. dxe5 {[%emt 0:00:13]} dxe5 {[%emt 0:00:07]} 9. Bg5 {[%emt 0:00:15]} Be6 {[%emt 0:00:26]} 10. Qc1 {[%emt 0:00:30]} Qc8 {[%emt 0:12:29]} 11. Rd1 {[%emt 0:00:25]} Nd7 {[%emt 0:05:45]} 12. b3 {[%emt 0:00:33]} f6 {[%emt 0:03:58]} 13. Bh6 {[%emt 0:00:26]} Rf7 {[%emt 0:00:06]} 14. Bxg7 {[%emt 0:00:33]} Kxg7 {[%emt 0:01:13]} 15. Qa3 {[%emt 0:03:26]} Qf8 {[%emt 0:07:59]} 16. Qxf8+ {[%emt 0:00:20]} Raxf8 {[%emt 0:00:08]} 17. Nd2 {[%emt 0:10:34]} Ndb8 {[%emt 0:08:15]} 18. Nde4 {[%emt 0:04:07]} b6 {[%emt 0:01:37]} 19. Nd5 {[%emt 0:13:49]} h6 {[%emt 0:09:56]} 20. Nec3 {[%emt 0:03:59]} Nd8 {[%emt 0:06:19]} 21. Rd2 {[%emt 0:06:13]} c6 {[%emt 0:01:52]} 22. Nb4 {[%emt 0:03:26]} Rd7 {[%emt 0:08:08]} 23. Rxd7+ {[%emt 0:02:35]} Bxd7 {[%emt 0:00:06]} 24. Rd1 {[%emt 0:00:33]} Be6 {[%emt 0:02:12]} 25. Rd6 {[%emt 0:17:20]} Kf7 {[%emt 0:01:50]} 26. Kf1 {[%emt 0:00:16]} Ke7 {[%emt 0:00:06]} 27. Rd2 {[%emt 0:00:28]} g5 {[%emt 0:03:20]} 28. Nd3 {[%emt 0:05:30]} Nf7 {[%emt 0:00:54]} 29. Ke1 {[%emt 0:04:22]} f5 {[%emt 0:01:02]} 30. f4 {[%emt 0:03:58]} gxf4 {[%emt 0:00:25]} 31. gxf4 {[%emt 0:00:09]} e4 {[%emt 0:00:12]} 32. Nb4 {[%emt 0:01:04]} Rg8 {[%emt 0:00:36]} 33. e3 {[%emt 0:00:37]} a5 {[%emt 0:02:32]} 34. Nc2 {[%emt 0:00:19]} Na6 {[%emt 0:00:27]} 35. Kf2 {[%emt 0:02:54]} Nc5 {[%emt 0:00:22]} 36. Bf1 {[%emt 0:01:11]} h5 {[%emt 0:00:47]} 37. Nd4 {[%emt 0:00:49]} Bd7 {[%emt 0:00:13]} 38. a3 {[%emt 0:01:09]} Nh6 {[%emt 0:00:33]} 39. h3 {[%emt 0:03:55]} h4 {[%emt 0:01:33]} 40. b4 {[%emt 0:00:15]} Nd3+ {[%emt 0:00:20]} 41. Bxd3 {[%emt 0:00:18]} exd3 {[%emt 0:00:05]} 42. Nf3 {[%emt 0:01:00]} Rg3 {[%emt 0:01:34]} 43. Rxd3 {[%emt 0:04:13]} Rxh3 {[%emt 0:00:16]} 44. Ne2 {[%emt 0:00:38]} Rh1 {[%emt 0:01:16]} 45. Kg2 {[%emt 0:01:08]} Ra1 {[%emt 0:01:04]} 46. Nxh4 {[%emt 0:00:25]} axb4 {[%emt 0:00:32]} 47. axb4 {[%emt 0:00:15]} Ra2 {[%emt 0:00:43]} 48. Kf1 {[%emt 0:02:20]} Ra1+ {[%emt 0:02:29]} 49. Kg2 {[%emt 0:00:44]} Ra2 {[%emt 0:01:37]} 50. Kf1 {[%emt 0:01:14]} Ra1+ {[%emt 0:01:51]} 1/2-1/2

[Event "1st 4NCL International Open"]
[Site "Telford"]
[Date "2018.11.04"]
[Round "8"]
[White "Jamieson, Ian"]
[Black "Ther, Mate"]
[Result "1/2-1/2"]
[ECO "A00"]
[WhiteElo "1947"]
[BlackElo "1755"]
[Annotator "NA"]
[PlyCount "35"]
[EventDate "2018.10.31"]
[EventType "swiss"]
[EventCountry "GBR"]
[SourceTitle "playchess.com"]
[Source "ChessBase"]
[SourceQuality "1"]
[TimeControl "5400+30"]

1. b4 {[%emt 0:00:00]} e5 {[%emt 0:00:00]} 2. Bb2 {[%emt 0:00:05]} d6 {[%emt 0:00:24]} 3. c4 {[%emt 0:00:31]} f5 {[%emt 0:00:33]} 4. e3 {[%emt 0:02:23]} Nf6 {[%emt 0:00:34]} 5. d4 {[%emt 0:00:52]} e4 {[%emt 0:01:18]} 6. Ne2 {[%emt 0:00:22]} Be7 {[%emt 0:01:04]} 7. b5 {[%emt 0:07:16]} Be6 {[%emt 0:00:57]} 8. Nf4 {[%emt 0:00:28]} Bf7 {[%emt 0:00:07]} 9. h4 {[%emt 0:00:19]} Nbd7 {[%emt 0:00:35]} 10. Be2 {[%emt 0:01:49]} a6 {[%emt 0:03:52]} 11. a4 {[%emt 0:00:23]} axb5 {[%emt 0:00:15]} 12. axb5 {[%emt 0:00:22]} Nb6 {[%emt 0:06:42]} 13. Rxa8 {[%emt 0:06:32]} Qxa8 {[%emt 0:00:12]} 14. Qb3 {[%emt 0:00:55]} O-O {[%emt 0:07:54]} 15. Nc3 {[%emt 0:06:10]} c6 {[%emt 0:03:07]} 16. O-O {[%emt 0:03:12]} Rc8 {[%emt 0:01:14]} 17. Rc1 {[%emt 0:02:39]} c5 {[%emt 0:01:38]} 18. d5 {[%emt 0:04:50]} 1/2-1/2

[Event "1st 4NCL International Open"]
[Site "Telford"]
[Date "2018.11.04"]
[Round "8"]
[White "Gibson, Christopher A"]
[Black "Rahulan, Thivyaa"]
[Result "1/2-1/2"]
[ECO "C11"]
[WhiteElo "1924"]
[BlackElo "1868"]
[Annotator "NA"]
[PlyCount "44"]
[EventDate "2018.10.31"]
[EventType "swiss"]
[EventCountry "GBR"]
[SourceTitle "playchess.com"]
[Source "ChessBase"]
[SourceQuality "1"]
[TimeControl "5400+30"]

1. e4 {[%emt 0:00:00]} e6 {[%emt 0:00:00]} 2. d4 {[%emt 0:00:00]} d5 {[%emt 0:00:00]} 3. Nc3 {[%emt 0:00:00]} Nf6 {[%emt 0:00:00]} 4. e5 {[%emt 0:00:00]} Nfd7 {[%emt 0:00:00]} 5. f4 {[%emt 0:00:00]} c5 {[%emt 0:00:00]} 6. Nf3 {[%emt 0:00:00]} Nc6 {[%emt 0:00:00]} 7. Be3 {[%emt 0:00:00]} a6 {[%emt 0:00:01]} 8. Qd2 {[%emt 0:00:00]} b5 {[%emt 0:00:21]} 9. dxc5 {[%emt 0:00:05]} Bxc5 {[%emt 0:00:10]} 10. Bd3 {[%emt 0:00:12]} Bb7 {[%emt 0:02:30]} 11. Bf2 {[%emt 0:03:02]} Qb6 {[%emt 0:02:24]} 12. a3 {[%emt 0:00:20]} Rc8 {[%emt 0:01:02]} 13. O-O {[%emt 0:00:35]} Na5 {[%emt 0:09:32]} 14. b4 {[%emt 0:09:07]} Bxf2+ {[%emt 0:05:20]} 15. Qxf2 {[%emt 0:03:22]} Qxf2+ {[%emt 0:05:09]} 16. Rxf2 {[%emt 0:02:38]} Rxc3 {[%emt 0:00:23]} 17. bxa5 {[%emt 0:00:10]} Nc5 {[%emt 0:00:16]} 18. Rd2 {[%emt 0:02:17]} Ke7 {[%emt 0:10:43]} 19. Nd4 {[%emt 0:02:09]} Na4 {[%emt 0:02:16]} 20. Kf2 {[%emt 0:18:38]} Rhc8 {[%emt 0:08:32]} 21. Ra2 {[%emt 0:17:24]} h6 {[%emt 0:06:00]} 22. g3 {[%emt 0:06:27]} R3c7 {[%emt 0:14:56]} 1/2-1/2

[Event "1st 4NCL International Open"]
[Site "Telford"]
[Date "2018.11.04"]
[Round "8"]
[White "Paul, Nathanael"]
[Black "Jukes, Sam"]
[Result "1-0"]
[ECO "C90"]
[WhiteElo "1890"]
[BlackElo "1880"]
[Annotator "NA"]
[PlyCount "73"]
[EventDate "2018.10.31"]
[EventType "swiss"]
[EventCountry "GBR"]
[SourceTitle "playchess.com"]
[Source "ChessBase"]
[SourceQuality "1"]
[TimeControl "5400+30"]

1. e4 {[%emt 0:00:00]} e5 {[%emt 0:00:00]} 2. Nf3 {[%emt 0:00:00]} Nc6 {[%emt 0:00:00]} 3. Bb5 {[%emt 0:00:00]} a6 {[%emt 0:00:00]} 4. Ba4 {[%emt 0:00:00]} Nf6 {[%emt 0:00:11]} 5. d3 {[%emt 0:00:00]} b5 {[%emt 0:01:05]} 6. Bb3 {[%emt 0:00:06]} Bb7 {[%emt 0:03:00]} 7. O-O {[%emt 0:08:43]} Be7 {[%emt 0:03:15]} 8. Re1 {[%emt 0:03:11]} O-O {[%emt 0:00:52]} 9. Nbd2 {[%emt 0:01:38]} d6 {[%emt 0:01:11]} 10. c3 {[%emt 0:00:07]} Na5 {[%emt 0:01:03]} 11. Bc2 {[%emt 0:00:06]} c5 {[%emt 0:00:54]} 12. Nf1 {[%emt 0:00:34]} Nc6 {[%emt 0:04:02]} 13. Ng3 {[%emt 0:00:07]} Re8 {[%emt 0:01:59]} 14. d4 {[%emt 0:15:21]} Bf8 {[%emt 0:03:11]} 15. d5 {[%emt 0:02:04]} Ne7 {[%emt 0:03:37]} 16. h4 {[%emt 0:01:44]} h6 {[%emt 0:03:16]} 17. h5 {[%emt 0:01:14]} Bc8 {[%emt 0:02:57]} 18. Nh4 {[%emt 0:09:19]} Bg4 {[%emt 0:02:11]} 19. f3 {[%emt 0:00:29]} Bxh5 {[%emt 0:01:48]} 20. Ngf5 {[%emt 0:03:59]} Bg6 {[%emt 0:07:54]} 21. g4 {[%emt 0:00:30]} Bxf5 {[%emt 0:06:16]} 22. gxf5 {[%emt 0:02:37]} Nh7 {[%emt 0:01:53]} 23. Ng2 {[%emt 0:00:28]} Kh8 {[%emt 0:01:51]} 24. Kf2 {[%emt 0:01:03]} Ng8 {[%emt 0:01:04]} 25. Rh1 {[%emt 0:00:19]} Ngf6 {[%emt 0:02:56]} 26. Be3 {[%emt 0:00:48]} a5 {[%emt 0:03:50]} 27. Qd2 {[%emt 0:02:13]} a4 {[%emt 0:09:57]} 28. Bd3 {[%emt 0:01:08]} Qa5 {[%emt 0:01:36]} 29. Be2 {[%emt 0:02:48]} c4 {[%emt 0:05:33]} 30. a3 {[%emt 0:00:10]} Nd7 {[%emt 0:00:45]} 31. Rh2 {[%emt 0:01:02]} Nc5 {[%emt 0:00:22]} 32. Rah1 {[%emt 0:00:36]} Nf6 {[%emt 0:01:30]} 33. Bxh6 {[%emt 0:04:07]} Ncxe4+ {[%emt 0:06:51]} 34. fxe4 {[%emt 0:00:09]} Nxe4+ {[%emt 0:00:07]} 35. Ke1 {[%emt 0:00:32]} f6 {[%emt 0:08:08]} 36. Qe3 {[%emt 0:05:41]} gxh6 {[%emt 0:03:27]} 37. Rxh6+ {[%emt 0:04:52]} 1-0